bitfinex/quotes_SOLUSD_20250204
["timestamp","ask_amount","ask_price","bid_price","bid_amount"]
[1738684591032,11.5585,216.29,216.19,36.64019542]
[1738684591638,11.5585,216.29,216.16,36.64019542]
[1738684592045,11.5585,216.29,216.18,36.64019542]
[1738684592250,4.6229,216.31,216.26,36.64019542]
[1738684592425,55.02,216.39,216.29,36.64019542]
[1738684592746,16.1754,216.38,216.29,36.64019542]
[1738684593535,16.1754,216.38,216.25,36.64019542]
[1738684594447,16.1754,216.38,216.2,4.75079]
[1738684594448,16.1754,216.38,216.27,36.64019542]
[1738684594639,16.1754,216.38,216.29,36.64019542]
[1738684595035,16.1754,216.38,216.27,36.64019542]
[1738684595245,39.2828,216.38,216.21,20.0]
[1738684595427,0.86676088,216.37,216.21,56.64019542]
[1738684595626,0.86676088,216.37,216.22,0.12549]
[1738684595854,16.1767,216.36,216.25,36.64019542]
[1738684596058,16.1767,216.36,216.27,36.64019542]
[1738684596426,16.1767,216.36,216.23,36.64019542]
[1738684596623,16.1767,216.36,216.27,36.64019542]
[1738684596960,11.5548,216.36,216.25,36.64019542]
[1738684597646,11.5548,216.36,216.27,36.64019542]
[1738684598035,11.5548,216.36,216.25,36.64019542]
[1738684598524,11.5548,216.36,216.27,36.64019542]
[1738684600228,11.5548,216.36,216.23,36.64019542]
[1738684600532,11.5548,216.36,216.25,36.64019542]
[1738684600844,11.5548,216.36,216.27,36.64019542]
[1738684601981,4.6514,216.38,216.29,36.64019542]
[1738684602138,16.2051,216.38,216.29,36.64019542]
[1738684602446,16.2051,216.38,216.27,36.64019542]
[1738684603856,40.1792155,216.38,216.23,36.64019542]
[1738684604326,39.3125,216.38,216.23,36.64019542]
[1738684604529,39.3125,216.38,216.25,36.64019542]
[1738684604761,39.3125,216.38,216.22,4.6248]
[1738684604762,16.2051,216.38,216.29,36.64019542]
[1738684605931,4.6514,216.38,216.29,36.64019542]
[1738684606130,0.03,216.38,216.34,36.64019542]
[1738684606332,4.6514,216.38,216.31,36.64019542]
[1738684606542,4.6514,216.38,216.3,36.64019542]
[1738684607434,0.03,216.38,216.36,36.64019542]
[1738684607765,0.03,216.44,216.41,13.91380853]
[1738684607944,0.03,216.44,216.43,37.14215542]
[1738684608130,0.03,216.44,216.43,36.76568542]
[1738684608532,0.03,216.44,216.43,50.55400395]
[1738684608757,0.15,216.5,216.48,0.12549]
[1738684608937,0.15,216.5,216.49,36.76568542]
[1738684609141,0.15,216.5,216.49,37.14215542]
[1738684609447,129.84,216.57,216.49,36.64019542]
[1738684609641,129.84,216.57,216.56,36.64019542]
[1738684610161,101.18629884,216.57,216.52,36.64019542]
[1738684610835,101.18629884,216.57,216.5,36.64019542]
[1738684611036,101.18629884,216.57,216.53,2.65893927]
[1738684611332,101.18629884,216.57,216.54,36.64019542]
[1738684611538,101.18629884,216.57,216.56,36.76568542]
[1738684611737,101.18629884,216.57,216.56,37.14215542]
[1738684611940,101.18629884,216.57,216.56,87.19419937]
[1738684612136,100.68469884,216.57,216.56,87.19419937]
[1738684612571,100.68469884,216.57,216.56,50.55400395]
[1738684613665,78.24790988,216.57,216.56,50.55400395]
[1738684614658,78.24790988,216.57,216.56,87.19419937]
[1738684614966,46.19973307,216.57,216.56,50.55400395]
[1738684615868,30.17755222,216.57,216.56,50.55400395]
[1738684616375,30.17755222,216.57,216.56,88.19419937]
[1738684616672,25.87755223,216.57,216.56,88.19419937]
[1738684617339,12.77755223,216.57,216.56,88.19419937]
[1738684617666,0.03,216.6,216.59,38.53080853]
[1738684617960,0.03,216.6,216.59,111.81119937]
[1738684618162,0.03,216.6,216.59,130.27719437]
[1738684618653,12.6667,216.87,216.64,0.50196]
[1738684618853,12.6667,216.87,216.75,36.64019542]
[1738684618854,4.6125,216.8,216.75,36.64019542]
[1738684619375,4.6125,216.8,216.72,36.64019542]
[1738684619868,11.5301,216.83,216.72,36.64019542]
[1738684620281,11.5301,216.83,216.7,36.64019542]
[1738684620888,13.39505976,216.83,216.64,36.64019542]
[1738684621045,13.41184853,216.82,216.63,36.64019542]
[1738684621378,1.86529949,216.81,216.63,36.64019542]
[1738684621663,16.1438,216.8,216.65,36.64019542]
[1738684621871,0.86530905,216.79,216.64,36.64019542]
[1738684622252,1.0,216.77,216.6,36.64019542]
[1738684622451,18.41240266,216.76,216.58,36.64019542]
[1738684622677,1.0,216.75,216.58,36.64019542]
[1738684622853,0.86550842,216.74,216.6,36.64019542]
[1738684623042,4.1351,216.76,216.67,36.64019542]
[1738684623442,4.1351,216.76,216.69,36.64019542]
[1738684623665,16.1476,216.75,216.65,36.64019542]
[1738684624053,16.1476,216.75,216.63,36.64019542]
[1738684624368,0.86538339,216.74,216.61,36.64019542]
[1738684624751,0.86538339,216.74,216.59,36.64019542]
[1738684624946,14.41184853,216.67,216.53,18.471628]
[1738684625144,1.86580075,216.66,216.47,36.64019542]
[1738684625467,20.0,216.62,216.45,36.64019542]
[1738684625668,0.86600334,216.61,216.45,36.64019542]
[1738684625967,20.0,216.56,216.43,6.7705447]
[1738684626168,0.86617897,216.55,216.43,6.7705447]
[1738684626368,13.27287897,216.55,216.43,6.7705447]
[1738684626569,20.0,216.51,216.43,4.47e-05]
[1738684626864,20.0,216.46,216.43,4.47e-05]
[1738684627070,20.0,216.46,216.41,18.68409575]
[1738684627567,0.86659557,216.48,216.33,36.64019542]
[1738684627764,2.01971401,216.48,216.33,36.64019542]
[1738684627946,16.1684,216.47,216.33,36.64019542]
[1738684628579,4.6195,216.47,216.37,36.64019542]
[1738684628781,4.6195,216.47,216.41,36.64019542]
[1738684629083,4.6195,216.47,216.35,36.64019542]
[1738684629245,0.86649892,216.46,216.29,0.063]
[1738684629446,16.1684,216.47,216.35,36.64019542]
[1738684629669,4.6195,216.47,216.37,36.64019542]
[1738684629877,4.68487168,216.5,216.39,36.64019542]
[1738684630076,24.6191,216.49,216.37,36.64019542]
[1738684630244,0.86650416,216.48,216.33,36.64019542]
[1738684630448,13.41184853,216.47,216.31,36.64019542]
[1738684630642,0.86667534,216.46,216.31,36.64019542]
[1738684631349,3.13370912,216.47,216.38,36.64019542]
[1738684631550,16.1669,216.49,216.38,36.64019542]
[1738684632072,16.1669,216.49,216.29,0.43947]
[1738684632073,4.6191,216.49,216.36,36.64019542]
[1738684632276,0.86645624,216.48,216.34,36.64019542]
[1738684632655,16.1669,216.49,216.38,36.64019542]
[1738684633254,16.1669,216.49,216.31,33.53733853]
[1738684633255,4.6191,216.49,216.4,36.64019542]
[1738684633453,4.6191,216.49,216.42,36.64019542]
[1738684633670,4.6191,216.49,216.4,36.64019542]
[1738684634376,4.6191,216.49,216.38,36.64019542]
[1738684634675,0.86632217,216.48,216.38,0.063]
[1738684635773,17.03335663,216.49,216.36,36.64019542]
[1738684635978,16.1669,216.49,216.36,36.64019542]
[1738684636151,0.86645017,216.48,216.34,36.64019542]
[1738684636567,0.86645017,216.48,216.32,36.64019542]
[1738684636771,20.0,216.46,216.32,36.64019542]
[1738684636974,0.86664401,216.45,216.32,36.64019542]
[1738684637379,13.41184853,216.44,216.29,0.063]
[1738684637675,0.86676044,216.43,216.29,0.063]
[1738684638079,16.1722,216.42,216.29,0.063]
[1738684638254,0.86682413,216.41,216.29,0.063]
[1738684638960,16.1736,216.4,216.29,0.063]
[1738684639180,0.86681341,216.39,216.29,0.063]
[1738684639679,28.8592,216.4,216.29,0.063]
[1738684639978,0.86675861,216.39,216.29,0.063]
[1738684640165,29.72600947,216.4,216.29,0.063]
[1738684640877,4.0456,216.35,216.29,0.063]
[1738684641076,16.1789,216.33,216.29,0.063]
[1738684641270,0.8671219,216.32,216.29,0.063]
[1738684641490,16.1789,216.33,216.29,0.063]
[1738684641798,4.6225,216.33,216.29,0.063]
[1738684642161,12.6856,216.4,216.32,36.64019542]
[1738684643175,54.88,216.41,216.34,36.64019542]
[1738684643480,54.88,216.41,216.36,36.64019542]
[1738684643665,54.88,216.41,216.4,36.64019542]
[1738684643975,28.36283285,216.42,216.4,36.64019542]
[1738684644491,28.36283285,216.51,216.41,0.50196]
[1738684644785,28.36283285,216.51,216.49,36.64019542]
[1738684646382,28.36283285,216.51,216.49,41.25919542]
[1738684646857,54.88,216.6,216.49,41.25919542]
[1738684647064,4.617,216.59,216.47,36.64019542]
[1738684647673,4.617,216.59,216.49,36.64019542]
[1738684648559,54.88,216.6,216.54,36.64019542]
[1738684648887,54.88,216.6,216.48,36.64019542]
[1738684648888,4.616,216.64,216.56,36.64019542]
[1738684649073,0.03,216.59,216.56,36.64019542]
[1738684649269,0.03,216.59,216.58,36.64019542]
[1738684650389,0.03,216.59,216.58,41.75935542]
[1738684650683,0.03,216.59,216.58,41.38288542]
[1738684650884,0.03,216.59,216.58,36.64019542]
[1738684651671,20.65695512,216.76,216.62,0.50196]
[1738684651864,25.27045512,216.76,216.7,36.64019542]
[1738684652058,25.27045512,216.76,216.68,36.64019542]
[1738684652265,25.27045512,216.76,216.66,36.64019542]
[1738684652678,25.27045512,216.76,216.6,13.41184853]
[1738684652679,0.8652069,216.75,216.6,36.64019542]
[1738684652881,0.8652069,216.75,216.48,49.84899542]
[1738684652882,0.8652069,216.75,216.58,36.64019542]
[1738684653078,13.41184853,216.74,216.58,36.64019542]
[1738684653275,0.86556928,216.73,216.58,36.64019542]
[1738684653475,0.86556928,216.73,216.6,36.64019542]
[1738684653787,16.1498,216.72,216.58,36.64019542]
[1738684653975,16.1498,216.72,216.52,0.50196]
[1738684653976,16.1498,216.72,216.6,36.64019542]
[1738684654171,16.1498,216.72,216.62,36.64019542]
[1738684654372,4.6142,216.72,216.66,36.64019542]
[1738684655392,4.6142,216.72,216.59,36.64019542]
[1738684655393,4.6142,216.72,216.64,36.64019542]
[1738684655573,32.19055512,216.76,216.56,13.41184853]
[1738684655574,21.52223025,216.76,216.62,36.64019542]
[1738684655775,16.1476,216.75,216.62,36.64019542]
[1738684656104,16.1476,216.75,216.6,36.64019542]
[1738684656105,0.86543042,216.74,216.6,36.64019542]
[1738684656476,0.86543042,216.74,216.58,36.64019542]
[1738684657379,21.0,216.71,216.56,36.64019542]
[1738684657572,12.9868,216.69,216.52,36.64019542]
[1738684657779,3.9852,216.67,216.52,36.64019542]
[1738684657975,3.9852,216.67,216.54,36.64019542]
[1738684658784,3.9852,216.67,216.56,36.64019542]
[1738684659000,4.6151,216.68,216.62,36.64019542]
[1738684659302,4.6151,216.68,216.52,0.50196]
[1738684659303,4.6151,216.68,216.6,36.64019542]
[1738684659600,11.5377,216.68,216.6,36.64019542]
[1738684659894,11.5377,216.68,216.58,36.64019542]
[1738684660076,0.86564936,216.67,216.56,4.6151]
[1738684660401,0.86564936,216.67,216.52,36.64019542]
[1738684661299,0.86564936,216.67,216.5,36.64019542]
[1738684661476,20.0,216.65,216.5,36.64019542]
[1738684661678,16.1565,216.63,216.5,36.64019542]
[1738684661873,0.86592036,216.62,216.5,36.64019542]
[1738684662079,0.86592036,216.62,216.46,18.157038]
[1738684662080,0.86592036,216.62,216.46,36.64019542]
[1738684662290,4.0694,216.6,216.44,36.64019542]
[1738684662486,0.86608435,216.59,216.44,36.64019542]
[1738684663082,13.41184853,216.58,216.42,36.64019542]
[1738684663421,20.0,216.58,216.46,36.64019542]
[1738684664003,16.161,216.57,216.46,36.64019542]
[1738684664208,4.6174,216.57,216.48,36.64019542]
[1738684664904,4.6174,216.57,216.46,36.64019542]
[1738684665209,17.02702777,216.57,216.44,36.64019542]
[1738684666690,16.161,216.57,216.46,36.64019542]
[1738684667808,11.5436,216.57,216.46,36.64019542]
[1738684668906,0.86607557,216.56,216.42,36.64019542]
[1738684669203,0.86607557,216.56,216.4,36.64019542]
[1738684669609,2.02556922,216.56,216.4,36.64019542]
[1738684669788,0.86607557,216.56,216.4,36.64019542]
[1738684670209,36.1624,216.55,216.4,36.64019542]
[1738684670425,36.1624,216.55,216.38,4.6214]
[1738684670426,1.1635337,216.58,216.44,0.12549]
[1738684670584,16.1598,216.59,216.51,36.64019542]
[1738684670789,4.617,216.59,216.51,36.64019542]
[1738684671102,16.1595,216.59,216.49,36.64019542]
[1738684671985,0.86597395,216.58,216.39,4.6211]
[1738684672190,0.86597395,216.58,216.36,0.063]
[1738684672191,16.161,216.57,216.42,36.64019542]
[1738684672397,0.86623002,216.56,216.42,36.64019542]
[1738684672987,4.6174,216.57,216.5,36.64019542]
[1738684673601,4.6174,216.57,216.48,36.64019542]
[1738684674117,11.5432,216.58,216.48,36.64019542]
[1738684674315,11.5432,216.58,216.5,36.64019542]
[1738684675327,0.86597172,216.6,216.51,0.12549]
[1738684675630,16.1581,216.61,216.5,36.64019542]
[1738684675793,17.02381453,216.61,216.5,36.64019542]
[1738684676425,17.02381453,216.61,216.48,36.64019542]
[1738684676623,0.03,216.59,216.48,36.64019542]
[1738684676920,0.89605699,216.59,216.46,36.64019542]
[1738684677339,20.0,216.58,216.44,0.063]
[1738684677621,13.41184853,216.56,216.44,0.063]
[1738684677835,4.3757,216.54,216.44,0.063]
[1738684677995,0.86630693,216.53,216.44,0.063]
[1738684678318,14.07080693,216.53,216.44,0.063]
[1738684679096,0.86630693,216.53,216.44,0.063]
[1738684679295,4.3757,216.54,216.5,36.64019542]
[1738684679501,4.618,216.55,216.5,36.64019542]
[1738684679722,0.03,216.59,216.52,36.64019542]
[1738684679723,4.6173,216.58,216.52,36.64019542]
[1738684681432,4.647,216.59,216.52,36.64019542]
[1738684681641,16.1895,216.59,216.5,36.64019542]
[1738684681829,0.86594625,216.58,216.44,36.70319542]
[1738684682327,0.86594625,216.58,216.46,36.64019542]
[1738684682491,0.86594625,216.58,216.48,36.64019542]
[1738684683103,16.1895,216.59,216.5,36.64019542]
[1738684683104,4.647,216.59,216.5,36.64019542]
[1738684683407,0.03,216.59,216.54,36.64019542]
[1738684683605,0.03,216.59,216.56,36.64019542]
[1738684684007,0.03,216.59,216.5,36.64019542]
[1738684684617,0.89601176,216.59,216.5,36.64019542]
[1738684684797,0.89601176,216.59,216.48,36.64019542]
[1738684685517,0.89601176,216.59,216.44,0.063]
[1738684685518,16.1602,216.58,216.46,36.64019542]
[1738684685731,0.86619535,216.57,216.46,36.64019542]
[1738684686031,12.936,216.56,216.44,0.063]
[1738684686322,0.8662176,216.55,216.44,0.063]
[1738684686496,13.41184853,216.54,216.44,0.063]
[1738684686821,0.86640718,216.53,216.44,0.063]
[1738684687200,13.41184853,216.52,216.44,0.063]
[1738684687517,16.1662,216.5,216.44,0.063]
[1738684687710,0.86644323,216.49,216.44,0.063]
[1738684687914,17.03254019,216.5,216.44,0.063]
[1738684688130,16.1662,216.5,216.44,0.063]
[1738684688917,4.6189,216.5,216.44,0.063]
[1738684689131,4.6187,216.52,216.47,22.52336869]
[1738684689594,4.618,216.54,216.47,22.52336869]
[1738684690016,4.618,216.54,216.45,22.52336869]
[1738684690325,4.618,216.54,216.47,22.52336869]
[1738684690921,4.618,216.54,216.49,22.52336869]
[1738684691303,4.618,216.54,216.47,22.52336869]
[1738684692199,4.618,216.54,216.45,22.52336869]
[1738684692394,0.86620451,216.53,216.44,0.063]
[1738684693509,0.86633148,216.52,216.44,0.063]
[1738684693906,4.6187,216.51,216.44,0.063]
[1738684694419,0.86634895,216.5,216.44,0.063]
[1738684694606,13.41184853,216.49,216.44,0.063]
[1738684694923,20.0,216.42,216.36,0.063]
[1738684695129,0.86676824,216.41,216.36,0.063]
[1738684695299,13.41184853,216.4,216.36,0.063]
[1738684695618,0.86690163,216.39,216.29,0.063]
[1738684696125,16.1751,216.38,216.29,0.063]
[1738684696315,0.86697399,216.37,216.29,0.063]
[1738684696626,17.80172853,216.36,216.29,0.063]
[1738684696926,32.2724,216.31,216.22,0.9368]
[1738684697235,13.13965199,216.31,216.22,0.9368]
[1738684697400,12.2724,216.31,216.22,0.9368]
[1738684697723,4.1389,216.36,216.3,36.67796559]
[1738684698023,4.6212,216.4,216.32,36.67796559]
[1738684698211,4.6212,216.4,216.34,36.67796559]
[1738684698406,4.2651,216.43,216.36,36.67796559]
[1738684698612,4.2651,216.43,216.38,36.67796559]
[1738684698822,6.57547553,216.49,216.38,36.67796559]
[1738684698823,4.6199,216.46,216.38,36.67796559]
[1738684699119,4.6199,216.46,216.28,0.50196]
[1738684699120,4.6199,216.46,216.36,36.67796559]
[1738684699531,4.6199,216.46,216.29,13.41184853]
[1738684699532,0.86643492,216.48,216.38,36.67796559]
[1738684699715,4.6195,216.48,216.38,36.67796559]
[1738684700305,4.6195,216.48,216.38,41.29936559]
[1738684700622,4.6195,216.48,216.4,36.67796559]
[1738684700821,16.9795,216.5,216.4,36.67796559]
[1738684700822,21.5985,216.5,216.4,36.67796559]
[1738684701031,7.16664167,216.51,216.44,36.67796559]
[1738684701218,11.78534167,216.51,216.42,36.67796559]
[1738684701402,0.86631477,216.5,216.38,36.67796559]
[1738684701732,0.86631477,216.5,216.36,36.67796559]
[1738684702051,18.03094853,216.49,216.32,36.67796559]
[1738684702202,0.86663434,216.48,216.3,36.67796559]
[1738684702407,13.91380853,216.47,216.3,36.67796559]
[1738684702611,13.41184853,216.45,216.3,36.67796559]
[1738684702816,0.86670068,216.44,216.3,36.67796559]
[1738684703009,20.0,216.46,216.32,36.67796559]
[1738684703205,0.86671478,216.48,216.32,36.67796559]
[1738684703424,13.41184853,216.47,216.32,36.67796559]
[1738684703634,17.31981419,216.49,216.32,36.67796559]
[1738684703635,0.86664194,216.46,216.32,36.67796559]
[1738684703846,0.86664194,216.46,216.34,36.67796559]
[1738684704235,4.62,216.45,216.32,41.30056559]
[1738684704625,0.86657907,216.44,216.32,36.67796559]
[1738684704930,0.86657907,216.44,216.3,4.623]
[1738684704931,0.86657907,216.44,216.31,20.0]
[1738684705843,0.86657907,216.44,216.3,41.30106559]
[1738684706032,4.62,216.45,216.32,36.67796559]
[1738684706219,16.1677,216.48,216.34,36.67796559]
[1738684706419,0.86653548,216.47,216.34,36.67796559]
[1738684707028,13.91380853,216.46,216.29,0.063]
[1738684707229,0.50196,216.42,216.29,0.063]
[1738684707450,0.12549,216.35,216.29,0.063]
[1738684707633,13.41184853,216.33,216.29,0.063]
[1738684707829,0.86723992,216.32,216.29,0.063]
[1738684708038,4.1707,216.31,216.21,0.063]
[1738684708344,16.1819,216.29,216.21,0.063]
[1738684708525,0.86725505,216.28,216.21,0.063]
[1738684708726,4.6234,216.29,216.21,36.74096559]
[1738684708935,4.6234,216.29,216.21,0.063]
[1738684709649,8.7938,216.31,216.22,42.23956559]
[1738684709826,5.44,216.37,216.24,36.67796559]
[1738684710160,4.6222,216.35,216.26,36.67796559]
[1738684710338,4.6217,216.37,216.28,36.67796559]
[1738684710656,8.7469,216.38,216.28,41.30156559]
[1738684711358,8.7469,216.38,216.3,36.67796559]
[1738684711359,4.1253,216.38,216.3,36.67796559]
[1738684711661,4.6213,216.39,216.3,36.67796559]
[1738684711947,4.6213,216.39,216.28,41.30156559]
[1738684712351,29.58404853,216.42,216.26,36.67796559]
[1738684712532,0.86685802,216.41,216.26,36.67796559]
[1738684712736,0.25098,216.39,216.22,42.23956559]
[1738684713053,0.86701744,216.38,216.22,42.23956559]
[1738684713275,13.66282853,216.37,216.22,0.9368]
[1738684713435,0.86709567,216.36,216.22,0.9368]
[1738684713939,0.86709567,216.36,216.28,0.063]
[1738684714142,13.41184853,216.35,216.28,0.063]
[1738684714359,16.1789,216.33,216.28,0.063]
[1738684714538,0.86712961,216.32,216.28,0.063]
[1738684714933,17.714,216.31,216.22,0.9368]
[1738684715131,18.58125016,216.31,216.22,0.9368]
[1738684715337,17.714,216.31,216.22,0.9368]
[1738684715534,17.714,216.31,216.22,37.61476559]
[1738684715948,17.714,216.31,216.22,42.23956559]
[1738684716435,4.6232,216.3,216.22,42.23956559]
[1738684719137,5.49028752,216.3,216.22,0.9368]
[1738684719654,17.04828752,216.3,216.22,0.9368]
[1738684720746,17.18464463,216.29,216.18,36.67796559]
[1738684721061,17.04828752,216.3,216.18,36.67796559]
[1738684721643,4.6232,216.3,216.2,36.67796559]
[1738684722077,0.86716128,216.29,216.2,36.67796559]
[1738684722255,0.86716128,216.29,216.18,36.67796559]
[1738684722451,0.86716128,216.29,216.16,41.93576559]
[1738684722851,13.41184853,216.28,216.16,5.2578]
[1738684723054,4.624,216.26,216.16,5.2578]
[1738684723257,0.86734992,216.25,216.16,5.2578]
[1738684724266,0.12549,216.23,216.16,0.0001]
[1738684724468,13.78831853,216.2,216.15,2.38610001]
[1738684724652,0.8678091,216.23,216.15,2.38610001]
[1738684724970,2.50075769,216.22,216.15,2.38610001]
[1738684725168,3.36827215,216.21,216.15,2.38610001]
[1738684725469,2.50075769,216.2,216.15,2.38610001]
[1738684725769,3.36834022,216.2,216.15,2.38610001]
[1738684725967,6.90801698,216.19,216.15,2.38610001]
[1738684726170,13.0855,216.17,216.15,1e-08]
[1738684726342,13.41184853,216.15,216.14,1e-08]
[1738684726650,15.92556551,216.15,216.07,0.063]
[1738684726856,3.47333762,216.14,216.07,0.063]
[1738684727076,4.6272,216.11,216.07,0.063]
[1738684727376,4.3018,216.08,216.03,0.063]
[1738684727552,3.47360469,216.07,216.03,0.063]
[1738684727750,2.49280664,216.06,216.03,0.063]
[1738684727949,3.36076558,216.05,216.03,0.063]
[1738684728276,2.49280664,216.04,216.03,0.063]
[1738684728473,12.1185,216.02,215.8,12.4764]
[1738684728656,3.36132602,216.01,215.84,36.67796559]
[1738684728970,2.59162913,216.0,215.84,36.67796559]
[1738684729173,13.53733853,215.98,215.84,36.67796559]
[1738684729466,3.46024645,215.97,215.82,36.67796559]
[1738684729678,2.59162913,215.96,215.84,36.67796559]
[1738684729884,0.86854039,215.95,215.84,36.67796559]
[1738684730064,3.39603231,215.95,215.84,36.67796559]
[1738684730379,2.52749192,215.94,215.82,36.67796559]
[1738684730556,4.6311,215.93,215.82,36.67796559]
[1738684730757,2.53251255,215.92,215.82,36.67796559]
[1738684731277,2.53251255,215.92,215.82,41.31136559]
[1738684731463,2.53251255,215.92,215.86,36.67796559]
[1738684731664,3.39091204,215.91,215.78,36.67796559]
[1738684731852,2.52238421,215.9,215.8,36.67796559]
[1738684732057,3.39114105,215.89,215.78,36.67796559]
[1738684732368,2.52238421,215.88,215.76,36.67796559]
[1738684732671,4.6326,215.86,215.76,36.67796559]
[1738684732874,2.51715478,215.85,215.76,36.67796559]
[1738684733662,2.51715478,215.85,215.75,4.6349]
[1738684733663,2.51715478,215.85,215.74,56.67796559]
[1738684734072,2.51715478,215.85,215.8,36.67796559]
[1738684734252,0.86869637,215.98,215.84,36.67796559]
[1738684734468,2.58549734,215.97,215.88,36.67796559]
[1738684734879,2.58549734,215.97,215.88,41.31006559]
[1738684735082,8.08424205,215.97,215.86,36.67796559]
[1738684735257,13.91380853,215.95,215.8,36.67796559]
[1738684735462,3.36260614,215.94,215.8,36.67796559]
[1738684735765,2.4938847,215.93,215.8,36.67796559]
[1738684735967,2.4938847,215.93,215.82,36.67796559]
[1738684736155,2.4938847,215.93,215.84,36.67796559]
[1738684736359,2.47395476,215.92,215.86,36.67796559]
[1738684736587,2.47395476,215.91,215.86,36.67796559]
[1738684736786,2.52962565,215.9,215.84,41.31076559]
[1738684736962,2.52962565,215.89,215.86,36.67796559]
[1738684737162,7.15982565,215.98,215.88,36.67796559]
[1738684737474,0.50196,215.96,215.84,36.67796559]
[1738684737676,0.8686911,215.95,215.82,36.67796559]
[1738684737875,13.91380853,215.94,215.8,36.67796559]
[1738684738059,0.86876452,215.93,215.8,36.67796559]
[1738684738878,4.6313,215.92,215.82,36.67796559]
[1738684739387,5.49992109,215.92,215.88,0.03]
[1738684739770,0.86876237,215.94,215.88,0.03]
[1738684740064,0.86855782,215.95,215.88,0.03]
[1738684740466,0.50196,215.94,215.88,0.03]
[1738684740782,13.91380853,215.92,215.88,0.03]
[1738684740992,13.91380853,215.92,215.66,40.3908]
[1738684740993,18.03920853,215.87,215.72,36.67796559]
[1738684741196,18.03920853,215.87,215.69,4.6362]
[1738684741197,0.86904622,215.86,215.7,36.67796559]
[1738684741374,13.91380853,215.85,215.7,36.67796559]
[1738684741690,13.91380853,215.83,215.68,36.67796559]
[1738684741888,13.91380853,215.81,215.66,4.6368]
[1738684742092,0.86930832,215.8,215.67,36.67796559]
[1738684742272,13.91380853,215.79,215.67,36.67796559]
[1738684742591,20.86937374,215.78,215.65,36.67796559]
[1738684742963,4.6345,215.77,215.65,36.67796559]
[1738684743166,0.86938794,215.76,215.65,36.67796559]
[1738684744094,4.6334,215.82,215.71,36.67796559]
[1738684744608,0.86907479,215.86,215.73,36.67796559]
[1738684744885,4.6332,215.84,215.74,4.6352]
[1738684745088,0.86907479,215.86,215.77,36.67796559]
[1738684745279,1.16090683,215.9,215.81,36.67796559]
[1738684745479,1.16090683,215.9,215.83,36.67796559]
[1738684745770,4.6314,215.92,215.83,36.67796559]
[1738684746190,4.6314,215.92,215.81,36.67796559]
[1738684746388,0.50196,215.9,215.77,36.67796559]
[1738684746566,0.86892183,215.89,215.75,36.67796559]
[1738684746985,4.6319,215.89,215.78,4.6343]
[1738684748309,0.8689205,215.9,215.81,36.67796559]
[1738684748464,0.86860451,215.91,215.81,36.67796559]
[1738684748668,33.91380853,215.9,215.71,36.67796559]
[1738684748893,13.41184853,215.87,215.7,4.636]
[1738684749077,0.50196,215.83,215.68,4.6363]
[1738684749279,0.86921005,215.82,215.68,4.6363]
[1738684749986,0.86921005,215.82,215.69,0.37647]
[1738684750166,0.8690564,215.81,215.7,4.636]
[1738684750583,4.6336,215.82,215.7,4.636]
[1738684750769,4.6332,215.84,215.71,36.67796559]
[1738684750979,4.6332,215.84,215.73,36.67796559]
[1738684751181,4.6332,215.84,215.75,36.67796559]
[1738684751382,51.7312,215.93,215.81,36.67796559]
[1738684751383,4.6317,215.9,215.81,36.67796559]
[1738684751580,4.6317,215.9,215.75,36.67796559]
[1738684751785,4.6317,215.9,215.7,4.636]
[1738684751786,20.0,215.87,215.7,41.31396559]
[1738684751971,0.86907789,215.86,215.7,41.31396559]
[1738684752167,16.2149,215.85,215.7,41.31396559]
[1738684752489,0.86907857,215.84,215.7,40.81396559]
[1738684752687,4.107,215.82,215.68,36.67796559]
[1738684753006,0.86913818,215.81,215.68,36.67796559]
[1738684753207,13.91380853,215.78,215.66,0.03]
[1738684753370,0.86940184,215.77,215.66,0.03]
[1738684754303,4.6347,215.76,215.66,36.70796559]
[1738684755072,4.6345,215.78,215.68,36.67796559]
[1738684756081,4.6341,215.8,215.7,36.67796559]
[1738684756491,4.6341,215.8,215.71,4.6358]
[1738684756812,11.5825,215.85,215.71,4.6358]
[1738684756813,4.6322,215.88,215.78,36.67796559]
[1738684757090,16.8921,215.91,215.81,36.67796559]
[1738684757295,16.8921,215.91,215.83,36.67796559]
[1738684757498,21.5237,215.91,215.83,36.67796559]